Cogmind - Beta 16 @@@ ROGUE MODE // 2025.10.25 @ 11:18:00 Player: human Result: Destroyed by G-34 Mercenary with Small Laser Performance ------------- Evolutions (1) 500 Regions Visited (2) 400 Robots Destroyed (30) 150 Value Destroyed (650) 650 Prototype IDs (0) 0 Alien Tech Used (0) 0 Bonus (0) 0 TOTAL SCORE: 1700 Bonus ------- None Cogmind --------- Core Integrity 0/400 Matter 300/300 Energy 100/100 System Corruption 0% Temperature Cool (6) Movement Core (1400) Ox27 Location -9/Materials Parts ------- > --- POWER (1) -------- (None) > --- PROPULSION (3) --- (None) > --- UTILITY (2) ------ Huge Storage Unit Melee Analysis Suite > --- WEAPON (3) ------- Mace > --- INVENTORY (25) --- Wheel Wheel High-capacity Storage Unit Signal Interpreter Reactive Plating Reactive Plating Peak State ------------ > --- POWER ------------ Light Deuterium Engine > --- PROPULSION ------- Armored Wheel Armored Wheel Armored Wheel > --- UTILITY ---------- High-capacity Storage Unit Melee Analysis Suite > --- WEAPON ----------- Mace > --- INVENTORY -------- Light Deuterium Engine Melee Analysis Suite Reactive Plating Reactive Plating [Rating: 16] Favorites ----------- Power Light Ion Engine Engine Light Ion Engine Propulsion Armored Wheel Treads Light Treads Wheel Armored Wheel Utility Small Storage Unit Device Heat Sink Storage Small Storage Unit Processor Melee Analysis Suite Protection Light Armor Plating Weapon Small Laser Energy Gun Small Laser Ballistic Gun Light Assault Rifle Impact Weapon Mace Build | -11 -10 -9 ------- Run | Yrd Mat Mat Slots Evolved 2 | . . 2 Power . | . . . Propulsion 1 | . . 1 Utility . | . . . Weapon 1 | . . 1 Parts Attached 24 | 6 7 11 Power 5 | 1 2 2 Engine 5 | 1 2 2 Core . | . . . Reactor . | . . . Propulsion 7 | 2 2 3 Treads 2 | 2 . . Leg . | . . . Wheel 5 | . 2 3 Hover . | . . . Flight . | . . . Utility 7 | 1 1 5 Device 1 | . 1 . Storage 3 | 1 . 2 Processor 2 | . . 2 Hackware . | . . . Protection 1 | . . 1 Artifact . | . . . Weapon 5 | 2 2 1 Energy Gun 3 | 1 2 . Energy Cannon . | . . . Ballistic Gun 1 | 1 . . Ballistic Cannon . | . . . Launcher . | . . . Special Weapon . | . . . Impact Weapon 1 | . . 1 Slashing Weapon . | . . . Piercing Weapon . | . . . Special Melee Weapon . | . . . Unidentified Prototypes . | . . . Parts Lost 18 | . 6 12 Power 5 | . 2 3 Propulsion 6 | . 2 4 Utility 3 | . . 3 Weapon 4 | . 2 2 Highest Loss Streak 6 | . 3 6 To Critical Strikes . | . . . Average Backups 4 | 2 4 4 Power . | . . . Propulsion 1 | 1 2 . Utility 1 | . . 2 Weapon . | . . . Tool/Special . | . . . Unused Backups 7 | . 2 5 Power . | . . . Propulsion 4 | . 2 2 Utility 3 | . . 3 Weapon . | . . . Tool/Special . | . . . Average Slot Usage (%) 83 | . 90 75 Engine 11 | . 13 9 Treads 9 | . 19 . Wheel 19 | . 8 30 Device 3 | . 6 . Storage 12 | . 14 11 Processor 4 | . . 9 Energy Gun 13 | . 21 3 Ballistic Gun 2 | . 5 . Impact Weapon 5 | . . 10 Peak Build Rating 16 | 6 9 16 Average Rating 10 | 4 7 14 On Entrance 5 | . 6 9 Avg Prop Armor Cover (%) 13 | . 13 . Naked Turns . | . . . Heaviest Build 87 | 10 15 87 Greatest Support 40 | 40 40 36 Greatest Overweight (x) 3 | . 1 3 Average Overweight (x) . | . . 1 Largest Inventory Capacity 25 | 8 8 25 Average Capacity 14 | 6 8 22 Most Carried 8 | 4 7 8 Average Carried 4 | 2 4 4 Final Capacity 25 | 8 8 25 Final Carried 6 | 4 5 6 Class Distribution -------------------- 100% | Mutant Dominant Class ---------------- Mutant | -10/Materials Mutant | -9/Materials Resources | -11 -10 -9 ----------- Run | Yrd Mat Mat Matter Collected 417 | 235 92 90 Remotely . | . . . Salvage Created 780 | . 362 418 Parts 47 | . 24 23 Haulers Intercepted . | . . . Recyclers Shooed . | . . . Parts Field Recycled . | . . . Retrieved Matter . | . . . Parts Self-Destructed . | . . . Prevented . | . . . Parts Restored . | . . . Kills | -11 -10 -9 ------- Run | Yrd Mat Mat Combat Hostiles Destroyed 25 | . 12 13 Melee 8 | . . 8 Guns 12 | . 12 . Classes Destroyed 6 | . 2 4 Worker 3 | . . 3 Mechanic 1 | . . 1 Operator 1 | . . 1 Swarmer 12 | . 5 7 Grunt 10 | . 7 3 Sentry 3 | . . 3 Best Kill Streak 4 | . 4 3 Combat Bots Only 4 | . 4 2 Max Kills in Single Turn 2 | . 2 1 Gunslinging . | . . . Exploded . | . . . Melee 1 | . . 1 Uniques/NPCs Destroyed . | . . . Combat | -11 -10 -9 -------- Run | Yrd Mat Mat Hostile Shots Fired 255 | . 99 156 Missed 63 | . 23 40 Hits 192 | . 76 116 Melee 6 | . . 6 Projectile 186 | . 76 110 Critical Strikes 4 | . 1 3 Damage Taken 2154 | . 860 1294 Core 627 | . 226 401 Absorbed by Shields . | . . . Core Remaining (%) 54 | 100 9 . Volleys Fired 35 | . 32 3 Largest 2 | . 2 2 Hottest 105 | . 105 105 Shots Fired 66 | . 61 5 Gun 66 | . 61 5 Cannon . | . . . Launcher . | . . . Special . | . . . Kinetic 11 | . 11 . Thermal 48 | . 43 5 Explosive . | . . . Electromagnetic 7 | . 7 . Robot Hit Streak 14 | . 14 1 Robot Miss Streak 3 | . 2 3 Penetration Max . | . . . Secondary Targets 2 | . 2 . Max Gunslinging Chain 1 | . 1 . Shots Hit Robots 85 | . 47 38 Core Hits 32 | . 21 11 Critical Kills 2 | . . 2 Critical Parts Destroyed 3 | . . 3 Critical Strikes 5 | . . 5 Smash 5 | . . 5 Melee Attacks 51 | . . 51 Impact 51 | . . 51 Slashing . | . . . Piercing . | . . . Sneak Attacks 6 | . . 6 Combat Hostiles . | . . . Follow-up Attacks . | . . . Damage Inflicted 1983 | . 565 1418 Guns 589 | . 565 24 Cannons . | . . . Explosions . | . . . Melee 1394 | . . 1394 Ramming . | . . . Kinetic 82 | . 82 . Thermal 431 | . 407 24 Explosive . | . . . Electromagnetic 76 | . 76 . Impact 1394 | . . 1394 Slashing . | . . . Piercing . | . . . Highest Corruption . | . . . Average Corruption . | . . . Corruption Purged . | . . . Corruption Blocked . | . . . Overload Shots . | . . . Overflow Damage 273 | . . 273 Projectiles . | . . . Explosions . | . . . Melee 273 | . . 273 Knockbacks 3 | . . 3 Impact 3 | . . 3 Kinetic . | . . . Secondary . | . . . Self-Inflicted Damage . | . . . Shots . | . . . Rammed . | . . . Targets Rammed . | . . . Kicked . | . . . Crushed . | . . . Highest Temperature 183 | . 183 87 Average Temperature 57 | . 59 47 Received Heat Transfer 498 | . 255 243 Siege Activations . | . . . Martial Activations . | . . . Shielding Activations . | . . . Robots Disrupted . | . . . Combat Hostiles . | . . . Robots Corrupted 6 | . . 6 Combat Hostiles 5 | . . 5 Parts Fried 4 | . . 4 Impact Corruptions 14 | . . 14 Robots Melted . | . . . Combat Hostiles . | . . . Parts Melted . | . . . Heat Transferred 995 | . 933 62 Parts Sabotaged . | . . . Parts Stolen . | . . . Parts Stripped . | . . . Power Chain Reactions . | . . . Alert | -11 -10 -9 ------- Run | Yrd Mat Mat Maximum Alert Level . | . . . Low Security (%) 100 | 100 100 100 Level 1 . | . . . Level 2 . | . . . Level 3 . | . . . Level 4 . | . . . Level 5 . | . . . High Security . | . . . Max Security . | . . . Peak Influence 151 | . 151 142 Initial 44 | . . 44 Average 51 | . 53 56 Influence Increases 793 | . 350 443 Destroy 0b10 Robot/C 500 | . 240 260 Destroy 0b10 Robot/NC 25 | . . 25 Destroy Leader 110 | . 50 60 Successful Hack 83 | . 30 53 Select Force Hacks 30 | . 30 . Disable Machine 15 | . . 15 Lose Combat Pursuer 30 | . . 30 Influence Decreases 688 | . 244 444 Entered New Map 62 | . . 62 Time Decay 463 | . 201 262 Lost Part 163 | . 43 120 Squads Dispatched 4 | . 3 1 Investigation 1 | . 1 . Extermination . | . . . Reinforcement 3 | . 2 1 Assault . | . . . Garrison . | . . . Intercept . | . . . Searches Triggered . | . . . Construction Impeded . | . . . Haulers Reinforced . | . . . Active Scanning Responses . | . . . Cargo Convoy Interrupts . | . . . Stealth | -11 -10 -9 --------- Run | Yrd Mat Mat Distress Signals 2 | . 1 1 Communications Jammed . | . . . Distress Signals . | . . . Times Spotted 46 | . 20 26 Peak Tracking Total 7 | . 6 7 Tactical Retreats 1 | . . 1 Traps | -11 -10 -9 ------- Run | Yrd Mat Mat Traps Triggered 2 | . 1 1 Indirectly . | . . . Trap Hack Attempts . | . . . Triggered . | . . . Disarmed . | . . . Reprogrammed . | . . . Reused . | . . . Traps Extracted . | . . . Installed . | . . . Triggered . | . . . Machines | -11 -10 -9 ---------- Run | Yrd Mat Mat Machines Disabled 1 | . . 1 Max in Single Turn 1 | . . 1 Machines Repaired . | . . . Machines Dismantled . | . . . Machines Sabotaged . | . . . Overloaded Fab Kills . | . . . Hacking | -11 -10 -9 --------- Run | Yrd Mat Mat Machines Accessed 12 | . 9 3 Terminals 10 | . 7 3 Fabricators . | . . . Repair Stations . | . . . Recycling Units 2 | . 2 . Scanalyzers . | . . . Garrison Access . | . . . Total Hacks 28 | . 21 7 Successful 18 | . 12 6 Failed 10 | . 9 1 Catastrophic 1 | . 1 . Database Lockouts . | . . . Manual 26 | . 19 7 Terminals 24 | . 17 7 Fabricators . | . . . Repair Stations . | . . . Recycling Units 4 | . 4 . Scanalyzers . | . . . Garrison Access . | . . . Terminal Hacks 2 | . 2 . Terminal Index 1 | . 1 . Locate Traps 1 | . 1 . Fabricator Hacks . | . . . Repair Station Hacks . | . . . Recycling Unit Hacks . | . . . Scanalyzer . | . . . Garrison Access Hacks . | . . . Unauthorized Hacks 16 | . 10 6 Terminals 15 | . 9 6 Botnet 6 | . 3 3 Skim 9 | . 6 3 Fabricators . | . . . Repair Stations . | . . . Recycling Units 1 | . 1 . Tunnel 1 | . 1 . Scanalyzers . | . . . Garrison Access . | . . . Data Cores Recovered . | . . . Used . | . . . Hacking Detections 9 | . 6 3 Full Trace Events . | . . . Feedback Events . | . . . Feedback Blocked . | . . . Robot Schematics Acquired . | . . . Robots Built . | . . . Authchips . | . . . Time . | . . . Total Robot Build Rating . | . . . Part Schematics Acquired . | . . . Parts Built . | . . . Authchips . | . . . Time . | . . . Total Part Build Rating . | . . . Part Studies Acquired . | . . . Parts Repaired . | . . . Time . | . . . Parts Recycled . | . . . Recycled Matter . | . . . Retrieved Matter . | . . . Retrieved Components . | . . . Parts Scanalyzed . | . . . Part Schematics Acquired . | . . . Parts Damaged . | . . . Bothacking | -11 -10 -9 ------------ Run | Yrd Mat Mat Used RIF Installer . | . . . Robots Hacked . | . . . Non-combat . | . . . Combat . | . . . Robot Hacks Applied . | . . . Relay Couplers Released . | . . . Fabnet Peak Effective % . | . . . Robots Rewired . | . . . Allies Hacked . | . . . Hacks Repelled . | . . . Allies | -11 -10 -9 -------- Run | Yrd Mat Mat Total Allies . | . . . Largest Group . | . . . Highest-Rated Group . | . . . Highest-Rated Ally . | . . . Total Orders . | . . . Ally Attacks . | . . . Total Damage . | . . . Kills . | . . . Allies Corrupted . | . . . Allies Melted . | . . . Intel | -11 -10 -9 ------- Run | Yrd Mat Mat Active Infowar (turns) . | . . . Robot Analysis Total . | . . . Derelict Logs Recovered . | . . . Drone Launches . | . . . Drone Recoveries . | . . . Exploration | -11 -10 -9 ------------- Run | Yrd Mat Mat Turns Passed 1219 | 82 577 560 Spaces Moved 725 | 45 372 308 Core 2 | 2 . . Treads 218 | 43 175 . Legs . | . . . Wheels 505 | . 197 308 Hover . | . . . Flight . | . . . Fastest Speed 50 | 50 85 85 Average Speed 118 | 155 121 109 Slowest Speed 160 | 160 160 135 Overloaded Moves . | . . . Propulsion Burnouts . | . . . Robots Hopped . | . . . Potential Cave-ins . | . . . Cave-ins Triggered . | . . . Exploration Rate (%) 37 | 4 84 25 Regions Visited 2 Branch Regions . Pre-discovered Areas 1 | . 1 . Known Exits Taken . | . . . Unknown Exits Taken 2 | 1 1 . Scrap Searched . | . . . Spaces Dug . | . . . Terrain Destroyed . | . . . Melee . | . . . Projectile . | . . . AOE . | . . . Terrain Rammed . | . . . Walls Destroyed . | . . . Machines Disabled . | . . . Actions | -11 -10 -9 --------- Run | Yrd Mat Mat Total 927 | 54 436 437 Wait 72 | . 16 56 Move 723 | 44 371 308 Hop . | . . . Pick Up 19 | 4 8 7 Fast Attach 11 | 6 2 3 Attach 12 | . 5 7 Detach . | . . . Swap 1 | . . 1 Drop 3 | . 2 1 Fire 35 | . 32 3 Melee 51 | . . 51 Ram . | . . . Kick . | . . . Crush . | . . . Escape Stasis . | . . . Rewire . | . . . Trap . | . . . Miscellaneous . | . . . Route ------- -11/Scrapyard -10/Materials (discovered 4 exits: *Mat x3 / [*Min]) -9/Materials History --------- Turn | Location | Event 22 | -11/Scrapyard | Discovered new exit (range 16) 83 | -11/Scrapyard | Entered Materials 198 | -10/Materials | Discovered new exit (range 5) 312 | -10/Materials | Build established: Mutant 369 | -10/Materials | Discovered new exit (range 8) 370 | -10/Materials | Lost 3 parts (1p2w) 438 | -10/Materials | Core integrity fell below 50% 515 | -10/Materials | Discovered new exit (range 4) 524 | -10/Materials | Core integrity fell below 20% 648 | -10/Materials | Discovered new exit (range 15) 660 | -10/Materials | Entered another Materials area 660 | -9/Materials | Evolved 2 slots: Propulsion x1, Weapon x1 809 | -9/Materials | Lost 6 parts (1p2n1u2w) 1051 | -9/Materials | Core integrity fell below 50% 1218 | -9/Materials | Core integrity fell below 20% 1220 | -9/Materials | Destroyed by G-34 Mercenary with Small Laser Last Messages --------------- 01195_ Sneak attack on M-13 Machinist. 01195_ M-13 Machinist destroyed. 01198_ U-05 Engineer works on Processing Tank. 01199_ K-01 Serf collects debris. 01200_ U-05 Engineer works on Processing Tank. 01202_ K-01 Serf collects debris. 01202_ Arm. Wheel destroyed. 01203_ U-05 Engineer works on Processing Tank. 01204_ G-34 Mercenary destroyed. 01205_ K-01 Serf collects debris. 01206_ Acquired 10 matter. 01207_ Arm. Wheel destroyed. 01209_ K-01 Serf collects debris. 01209_ Arm. Wheel severed. 01213_ K-01 Serf collects debris. 01214_ Lgt. Deuterium Engine destroyed. 01216_ K-01 Serf cleans the Processing Tank. 01219_ R-06 Scavenger collects Heat Sink. 01219_ K-01 Serf collects debris. Map ----- +----------------------------------------------------+ | """ #?????????????????????????????????????????? | | #?????????????????????????????????????????? | | ! " #?????????????????????????????????????????? | | T #?????????????????????????????????????????? | | " #?????????????????????????????????????????? | | #?????????????????????????????????????????? | | ########?????????????????????????????????????????? | | ?????????????????????????????????????????????????? | | ?????????????????????????????????????????????????? | | ?????????????????????????????????????????????????? | | ???????????????????????????? ???????????????????? | | ??????????????????????????? ????????????????? | | ???????????????????????????a #???????????????? | | ???????????????????? ????? #???????????????? | | ???????????????????? ??### #???????????????? | | ???????????????????? ?? #???????????????? | | ???????????????????+ u #???????????????? | | ####???????????????# """ << +???????????????? | | % *#???????????????# """ <<" #???????????????? | | *#???????????????# """ << ! #???????????????? | | ! #???????????????# """ <" #???????????????? | | !#???????????????# """ <" ?????????????????? | | #??????########## k ???????????????????? | | !!#??????# | # a%r ?????????????????????? | | ####??????# ## ###/####???????????????????? | | ??????????# ## # =@!g #???????????????????? | | ??????????# "" ## #gl""" #???????????????????? | | ??????????#""" "" ## # """ #???????????????????? | | ??????????#""" T" ## # """ #???????????????????? | | ??????????#""" "" + + #???????????????????? | | ??????????#""" "" #### #???????????????????? | | ??????????# #??########???????????????????? | | ??????????#####+####?????????????????????????????? | | ############# !% #??????????????????????????????? | | *= % #??????????????????????????????? | | ############# #??????????????????????????????? | | ????????????# #??????????????????????????????? | | ????????????# #??????????????????????????????? | | ????????????## ##??????????????????????????????? | | ?????????????# #???????????????????????????????? | | ?????????????# #???????????????????????????????? | | ?????????????+ #???????????????????????????????? | | ?????????????# #???????????????????????????????? | | ?????????????# #???????????????????????????????? | | ?????????????# #???????????????????????????????? | | ?????????????# ???????????????????????????????? | | ?????????????# ???????????????????????????????? | | ?????????????# ???????????????????????????????? | | ??????????????####???????????????????????????????? | | ?????????????????????????????????????????????????? | +----------------------------------------------------+ Best States ------------- Heat Dissipation 38 Energy Generation 14 Energy Capacity 250 Matter Stores 300 Matter Capacity 300 Sight Range 16 Terrain Scan Density 10 Armor Coverage 150 Evasion (%) 43 Melee Accuracy 5 Recoil Reduction 2 Item Schematics ----------------- None Robot Schematics ------------------ None Fabricated ------------ Nothing Repaired ---------- Nothing Studied --------- None Alien Tech Used ----------------- None Achievements -------------- None Challenges ------------ None Game ------ Seed QuantumBlanketAxe Manual? 0 Play Time 00:16:45 Cumulative 341.7 hours Start 2025.10.25 @ 11:03:19 End 2025.10.25 @ 11:18:00 Sessions 1 Manual Loads 0 Difficulty Rogue Special Mode None Game No. 263 Rogue 263 Adventurer 0 Explorer 0 Win Type - Total 4 Types 3/0/1/0/0/0/0/0/0/0 Lore% 81 Gallery% 68 Achievement% 42 Wizard Run 0 Options --------- Layout 1 ASCII 0 Keyboard 0 Movement Arrows Keybinds 0 Fullscreen 1 Font 24/Smallcaps Map View 50x35 Zoom Use 0% Tactical HUD 1 Map Filters NONE Filters NONE Steam 1 RUN: 2bcecc80-3c3f-4332-8e7b-a42d68445e5b